fUSD/lending_fUSD_20260320
["ID","MTS","AMOUNT","RATE_DAILY","PERIOD"]
[408637180,1774030243156,-3683.56,0.000137,2]
[408637181,1774030243165,-5160.88,0.000137,2]
[408637182,1774030243175,-5160.88,0.000137,2]
[408637183,1774030243184,-5160.88,0.000137,2]
[408637184,1774030243194,-5160.88,0.000137,2]
[408637185,1774030243203,-5160.88,0.000137,2]
[408637186,1774030243212,-500.0,0.00013888,2]
[408637187,1774030243221,-500.0,0.0001389,2]
[408637188,1774030243230,-500.0,0.0001389,2]
[408637189,1774030243239,-500.0,0.0001389,2]
[408637190,1774030243249,-500.0,0.0001389,2]
[408637191,1774030243258,-500.0,0.0001389,2]
[408637192,1774030243267,-500.0,0.0001389,2]
[408637193,1774030243277,-500.0,0.0001389,2]
[408637194,1774030243286,-500.0,0.0001389,2]
[408637195,1774030243295,-500.0,0.0001389,2]
[408637196,1774030243305,-500.0,0.0001389,2]
[408637197,1774030243314,-4609.0,0.00013896,2]
[408637198,1774030243324,-500.0,0.00013911,2]
[408637199,1774030243333,-500.0,0.00013911,2]
[408637200,1774030243343,-155.81408653,0.00013948,2]
[408637201,1774030243353,-150.0,0.00013948,2]
[408637202,1774030243363,-207.42368768,0.00013948,2]
[408637203,1774030243372,-151.0,0.00013948,2]
[408637204,1774030243382,-151.0,0.00013948,2]
[408637205,1774030243393,-4655.65663715,0.00013967,2]
[408637206,1774030243403,-500.0,0.00013992,2]
[408637207,1774030243413,-341.6962,0.00014,2]
[408637208,1774030243422,-5535.95474629,0.00014,2]
[408637209,1774030243432,-500.0,0.0001405,2]
[408637210,1774030243442,-216.0,0.00014089,2]
[408637211,1774030243451,-150.0,0.00014089,2]
[408637212,1774030243461,-200.0,0.00014089,2]
[408637213,1774030243470,-200.0,0.00014103,2]
[408637214,1774030243479,-237.102,0.00014328,2]
[408637215,1774030243489,-250.0,0.00014328,2]
[408637216,1774030243498,-224.244,0.00014328,2]
[408637217,1774030243508,-219.836,0.00014328,2]
[408637218,1774030243519,-162.403,0.00014328,2]
[408637219,1774030243528,-250.0,0.00014339,2]
[408637220,1774030243538,-150.139,0.00014339,2]
[408637221,1774030243547,-193.153,0.00014339,2]
[408637223,1774030243556,-165.756,0.00014339,2]
[408637225,1774030243566,-214.48,0.00014339,2]
[408637226,1774030243575,-250.0,0.00014339,2]
[408637227,1774030243585,-238.497,0.00014339,2]
[408637228,1774030243594,-179.0,0.00014339,2]
[408637229,1774030243603,-246.382694,0.00014339,2]
[408637230,1774030243620,-376.392306,0.00014339,2]
[408637231,1774030243631,-1178.78553052,0.00014339,2]
[408637236,1774030243986,-500.0,0.00011498,2]
[408637237,1774030243995,-40.16205524,0.00011772,2]
[408637238,1774030245854,-356.64470945,0.00011772,2]
[408637239,1774030245866,-103.19323531,0.00011772,2]
[408637240,1774030245875,-401.01592859,0.00012046,2]
[408637241,1774030245909,-98.98407141,0.00012046,2]
[408637242,1774030245919,-357.98190581,0.0001232,2]
[408637243,1774030245931,-142.01809419,0.0001232,2]
[408637244,1774030245941,-179.07,0.00014028,2]
[408637245,1774030245951,-171.24746948,0.00014339,2]
[408637246,1774030245960,-204.43727079,0.00014339,2]
[408637247,1774030245972,-839.56272921,0.00014339,2]
[408637248,1774030245981,-150.556,0.00014339,2]
[408637249,1774030245991,-900.0,0.00014356,2]
[408637250,1774030246005,-260.26127079,0.00014356,2]
[408637251,1774030246167,-239.73872921,0.00014356,2]
[408637252,1774030246177,-500.0,0.00014356,2]
[408637253,1774030246187,-500.62245352,0.00014438,2]
[408637254,1774030246196,-229.69052916,0.00014438,2]
[408637255,1774030246208,-770.30947084,0.00014438,2]
[408637256,1774030246217,-1000.0,0.00014438,2]
[408637257,1774030246227,-1000.0,0.00014438,2]
[408637258,1774030246237,-500.0,0.00014438,2]
[408637259,1774030246249,-1000.0,0.00014438,2]
[408637260,1774030246258,-1000.0,0.00014438,2]
[408637261,1774030246268,-1000.0,0.00014438,2]
[408637262,1774030246278,-677.3269594,0.00014438,2]
[408637263,1774030246287,-500.60679753,0.00014438,2]
[408637264,1774030246297,-739.61765061,0.00014459,2]
[408637265,1774030246306,-1252.0,0.00014474,2]
[408637266,1774030246317,-555.32045901,0.0001454,2]
[408637267,1774030246326,-1567.0,0.00014572,2]
[408637268,1774030246335,-200.518828,0.00014577,7]
[408637269,1774030246344,-2805.72104175,0.00014597,2]
[408637270,1774030246354,-1000.0,0.00014598,2]
[408637271,1774030246364,-4655.65663715,0.00014611,2]
[408637272,1774030246373,-5535.95474629,0.00014633,2]
[408637273,1774030246382,-311.34913296,0.00014702,2]
[408637274,1774030246392,-1506.0,0.00014745,5]
[408637275,1774030246402,-170.24432263,0.00014922,2]
[408637276,1774030246411,-550.20986564,0.00014986,2]
[408637277,1774030246421,-1500.0,0.00014986,2]
[408637278,1774030246435,-1500.0,0.00014986,2]
[408637279,1774030246444,-1500.0,0.00014986,2]
[408637280,1774030246453,-1500.0,0.00014986,2]
[408637282,1774030246462,-1500.0,0.00014986,2]
[408637283,1774030246472,-250.0,0.00015,2]
[408637284,1774030246481,-1567.0,0.00015066,2]
[408637285,1774030246491,-1500.0,0.00015146,2]
[408637286,1774030246501,-4655.65663715,0.00015256,2]
[408637287,1774030246511,-5535.95474629,0.00015267,2]
[408637288,1774030246521,-6453.0,0.00015285,2]
[408637289,1774030246530,-503.0,0.00015384,3]
[408637290,1774030246540,-3774.71602377,0.00015387,2]
[408637291,1774030246549,-2450.21,0.000154,2]
[408637292,1774030246558,-393.65,0.000154,2]
[408637293,1774030246568,-47008.97668348,0.000154,2]
[408637294,1774030246586,-150.0,0.000123,2]
[408637295,1774030246595,-18477.49675387,0.000154,2]
[408637306,1774031432298,-581.22389421,9.5e-05,3]
[408637307,1774031432311,-705.08286746,9.5e-05,3]
[408637308,1774031432323,-491.0360497,9.5e-05,3]
[408637309,1774031432334,-342.48315084,9.5e-05,3]
[408637310,1774031432356,-3369.82845651,9.5e-05,3]
[408637311,1774031432366,-308.96962415,9.546e-05,2]
[408637312,1774031432376,-5000.0,9.546e-05,2]
[408637313,1774031432387,-1200.0,9.591e-05,2]
[408637314,1774031432397,-300.0,9.591e-05,2]
[408637315,1774031432407,-300.0,9.591e-05,2]
[408637316,1774031432418,-229.0,9.591e-05,2]
[408637317,1774031432429,-2670.363,9.592e-05,2]
[408637318,1774031432439,-192.775,9.592e-05,2]
[408637319,1774031432449,-250.0,9.603e-05,2]
[408637320,1774031432460,-200.0,9.608e-05,2]
[408637321,1774031432470,-250.0,9.615e-05,2]
[408637322,1774031432481,-20423.66822122,9.688e-05,2]
[408637323,1774031432495,-5719.49229652,9.688e-05,2]
[408637325,1774031432543,-54231.70422314,9.688e-05,2]
[408637328,1774031432575,-119158.65705912,9.688e-05,2]
[408637329,1774031432586,-3346.47,9.71e-05,2]
[408637331,1774031432596,-500.0,9.763e-05,2]
[408637333,1774031432606,-163.47103582,9.763e-05,2]
[408637334,1774031432615,-500.0,9.777e-05,2]
[408637335,1774031432625,-500.0,9.777e-05,2]
[408637336,1774031432634,-500.0,9.777e-05,2]
[408637337,1774031432644,-500.0,9.777e-05,2]
[408637339,1774031432654,-150.0,9.777e-05,2]
[408637340,1774031432664,-46638.54399257,9.778e-05,2]
[408637341,1774031432674,-500.0,9.787e-05,2]
[408637342,1774031432684,-500.0,9.787e-05,2]
[408637343,1774031432693,-460.52144388,9.787e-05,2]
[408637344,1774031432703,-500.0,9.787e-05,2]
[408637345,1774031432712,-500.0,9.787e-05,2]
[408637346,1774031432722,-500.0,9.787e-05,2]
[408637347,1774031432732,-500.0,9.787e-05,2]
[408637348,1774031432742,-500.0,9.787e-05,2]
[408637349,1774031432752,-307.23683169,9.787e-05,2]
[408637350,1774031432762,-168.11042103,9.787e-05,2]
[408637351,1774031432771,-190639.23368598,9.788e-05,2]
[408637352,1774031432784,-717.657075,9.788e-05,2]
[408637354,1774031438160,-151.85979793,9.777e-05,2]
[408637355,1774031438169,-184.00874402,9.777e-05,2]
[408637356,1774031438182,-315.99125598,9.777e-05,2]
[408637357,1774031438192,-119.19892656,9.777e-05,2]
[408637358,1774031438204,-380.80107344,9.777e-05,2]
[408637359,1774031438214,-500.0,9.777e-05,2]
[408637360,1774031438223,-500.0,9.777e-05,2]
[408637361,1774031438233,-2335.6591543,9.788e-05,2]
[408637362,1774031438247,-9648.2239411,9.788e-05,2]
[408637363,1774031438259,-4211.06731758,9.788e-05,2]
[408637364,1774031438271,-404.39535587,9.788e-05,2]
[408637365,1774031438328,-900.28948615,9.788e-05,2]
[408637367,1774031438343,-251.76529873,9.788e-05,2]
[408637376,1774031440296,-1154.23860153,9.788e-05,2]
[408637382,1774031440509,-1789.66384447,9.788e-05,2]
[408637383,1774031440564,-503.44357086,9.788e-05,2]
[408637384,1774031440576,-285019.62946843,9.788e-05,2]
[408637385,1774031440586,-307.47975526,9.788e-05,2]
[408637386,1774031440595,-618.80171253,9.788e-05,2]
[408637387,1774031440605,-205.0,9.8e-05,2]
[408637388,1774031440614,-33535.04,9.872e-05,2]
[408637389,1774031440624,-326.89,0.0001,2]
[408637390,1774031440634,-9479.14494785,0.0001,2]
[408637391,1774031440644,-151.0,0.0001,2]
[408637392,1774031440654,-151.0,0.0001,2]
[408637393,1774031440663,-151.0,0.0001,2]
[408637394,1774031440673,-151.0,0.0001,2]
[408637395,1774031440684,-151.0,0.0001,2]
[408637396,1774031440693,-151.0,0.0001,2]
[408637397,1774031440703,-203.14971502,0.0001,2]
[408637398,1774031440712,-300.0,0.0001,3]
[408637399,1774031440722,-1942.57535676,0.0001,2]
[408637400,1774031440731,-2751.31449462,0.0001,2]
[408637401,1774031440741,-12702.83735179,0.0001,2]
[408637402,1774031440751,-1852.42,0.00010141,2]
[408637403,1774031440760,-326.89,0.00010274,2]
[408637404,1774031440770,-193.0,0.0001045,2]
[408637405,1774031440779,-5000.0,0.0001045,2]
[408637406,1774031440788,-326.89,0.00010548,2]
[408637407,1774031440798,-1680.0,0.0001055,2]
[408637408,1774031440807,-420.0,0.0001055,2]
[408637409,1774031440816,-188.0,0.0001055,2]
[408637410,1774031440826,-250.0,0.00010551,2]
[408637412,1774031440835,-485.9,0.00010576,2]
[408637413,1774031440845,-269.8552029,0.000107,2]
[408637414,1774031440853,-255.0,0.00010755,2]
[408637415,1774031440861,-1033.85625143,0.000108,2]
[408637416,1774031440868,-326.89,0.00010822,2]
[408637417,1774031440876,-150.0,0.00010959,2]
[408637419,1774031440884,-150.0,0.00011,2]
[408637420,1774031440894,-326.91,0.00011096,2]
[408637422,1774031440903,-465.56566376,0.00011099,2]
[408637424,1774031440912,-465.56566371,0.00011099,2]
[408637426,1774031440921,-465.56566371,0.00011099,2]
[408637427,1774031440931,-2351.0,0.00011605,2]
[408637428,1774031440942,-587.0,0.00011605,2]
[408637429,1774031440953,-465.56566371,0.00011759,2]
[408637430,1774031440962,-3209.15718891,0.00011785,2]
[408637431,1774031440972,-193.47,0.00012208,2]
[408637432,1774031440981,-2683.62,0.0001228,2]
[408637433,1774031440990,-2307.59,0.00012308,2]
[408637434,1774031441000,-2000.0,0.00012317,2]
[408637435,1774031441011,-197.335,0.000124,2]
[408637436,1774031441020,-979.16666667,0.00012446,2]
[408637437,1774031441029,-465.56566371,0.00012449,2]
[408637438,1774031441039,-553.59547462,0.00012449,2]
[408637439,1774031441048,-250.0,0.00012553,2]
[408637440,1774031441058,-500.0,0.00012575,2]
[408637441,1774031441067,-500.0,0.00012658,2]
[408637442,1774031441076,-3292.0,0.00012766,2]
[408637443,1774031441086,-823.0,0.00012766,2]
[408637444,1774031441096,-307.47975526,0.00012794,2]
[408637445,1774031441108,-193.47,0.00012886,2]
[408637446,1774031441117,-465.56566371,0.00013139,2]
[408637447,1774031441127,-553.59547462,0.00013139,2]
[408637448,1774031441137,-1052.14539065,0.00013207,2]
[408637449,1774031441147,-503.0,0.000133,2]
[408637450,1774031441156,-151.0,0.00013374,2]
[408637451,1774031441166,-180.64143654,0.00013374,2]
[408637452,1774031441177,-500.0,0.00013374,2]
[408637453,1774031441186,-500.0,0.00013374,2]
[408637454,1774031441195,-500.0,0.00013374,2]
[408637455,1774031441205,-500.0,0.00013374,2]
[408637456,1774031441214,-500.0,0.00013374,2]
[408637457,1774031441223,-500.0,0.00013374,2]
[408637458,1774031441233,-500.0,0.00013374,2]
[408637459,1774031441243,-500.0,0.00013374,2]
[408637460,1774031441253,-250.0,0.00013374,2]
[408637461,1774031441262,-500.0,0.00013374,2]
[408637462,1774031441271,-268.15363795,0.00013374,2]
[408637463,1774031441281,-500.0,0.00013374,2]
[408637464,1774031441290,-500.0,0.00013374,2]
[408637465,1774031441299,-402.65007131,0.00013374,2]
[408637466,1774031441308,-334.73758888,0.00013374,2]
[408637467,1774031441317,-193.47,0.00013564,2]
[408637468,1774031441327,-500.0,0.00013698,2]
[408637469,1774031441337,-500.0,0.00013698,2]
[408637470,1774031441346,-500.0,0.00013698,2]
[408637471,1774031441356,-463.052068,0.00013698,2]
[408637472,1774031441366,-500.0,0.00013698,2]
[408637473,1774031441376,-500.0,0.00013698,2]
[408637474,1774031441386,-500.0,0.00013698,2]
[408637475,1774031441395,-500.0,0.00013698,2]
[408637476,1774031441404,-500.0,0.00013698,2]
[408637477,1774031441413,-500.0,0.00013698,2]
[408637478,1774031441423,-524.44263512,0.00013698,2]
[408637479,1774031441433,-313.86,0.00013699,2]
[408637480,1774031441443,-150.91,0.00013699,2]
[408637481,1774031441454,-201.51843479,0.00013699,2]
[408637482,1774031441464,-3691.43,0.000137,2]
[408637483,1774031441473,-1960.17,0.000137,2]
[408637484,1774031441483,-3315.21,0.000137,2]
[408637485,1774031441494,-275.55,0.000137,2]
[408637486,1774031441509,-52930.07,0.000137,2]
[408637487,1774031441526,-259.6075,0.000138,2]
[408637488,1774031441535,-465.56566371,0.00013829,2]
[408637489,1774031441545,-553.59547462,0.00013829,2]
[408637490,1774031441554,-537.90108327,0.00013833,2]
[408637491,1774031441563,-500.0,0.00013833,2]
[408637492,1774031441573,-500.0,0.00013833,2]
[408637493,1774031441583,-500.0,0.00013833,2]
[408637494,1774031441592,-500.0,0.00013833,2]
[408637495,1774031441602,-500.0,0.00013833,2]
[408637496,1774031441611,-500.0,0.00013833,2]
[408637497,1774031441620,-2000.0,0.00013857,2]
[408637498,1774031441630,-600.0,0.000139,5]
[408637499,1774031441642,-151.0,0.00013922,2]
[408637500,1774031441653,-11350.00421475,0.0001399,2]
[408637501,1774031441662,-1152.0,0.00014042,2]
[408637502,1774031441673,-4609.0,0.00014042,2]
[408637503,1774031441684,-1000.0,0.00014135,2]
[408637504,1774031441693,-193.47,0.00014242,2]
[408637505,1774031441702,-1261.0,0.00014339,2]
[408637506,1774031441711,-150.0,0.00014339,2]
[408637507,1774031441720,-924.0,0.00014339,2]
[408637508,1774031441729,-1215.0,0.00014339,2]
[408637509,1774031441738,-3513.0,0.00014339,2]
[408637510,1774031441748,-525.352,0.00014339,2]
[408637511,1774031441758,-2465.0,0.00014339,2]
[408637512,1774031441767,-500.0,0.00014356,2]
[408637513,1774031441776,-800.0,0.00014356,2]
[408637514,1774031441786,-500.0,0.00014356,2]
[408637515,1774031441795,-500.0,0.00014356,2]
[408637516,1774031441805,-1052.14539065,0.00014381,2]
[408637517,1774031441814,-1000.0,0.00014381,2]
[408637518,1774031441833,-1007.92423982,0.00014381,2]
[408637519,1774031441844,-1000.0,0.00014381,2]
[408637520,1774031441854,-419.75064279,0.00014381,2]
[408637521,1774031441863,-1000.0,0.00014381,2]
[408637522,1774031441873,-301.677511,0.00014381,2]
[408637523,1774031441883,-465.56566371,0.0001452,2]
[408637524,1774031441892,-553.59547462,0.0001452,2]
[408637525,1774031441902,-344.46,0.00014611,2]
[408637526,1774031441915,-300.0,0.00014633,2]
[408637527,1774031441924,-803.0,0.00014645,5]
[408637528,1774031441934,-843.0,0.00014645,5]
[408637529,1774031441943,-300.0,0.00014702,2]
[408637530,1774031441953,-300.0,0.00014745,2]
[408637531,1774031441963,-320.579483,0.00014838,7]
[408637532,1774031441973,-332.201616,0.00014838,7]
[408637533,1774031441983,-193.47,0.00014921,2]
[408637534,1774031441993,-300.0,0.00014922,2]
[408637535,1774031442003,-574.83203376,0.00014929,2]
[408637536,1774031442012,-1500.0,0.00014929,2]
[408637537,1774031442022,-1387.45023446,0.00014929,2]
[408637538,1774031442032,-300.0,0.00014986,2]
[408637539,1774031442044,-300.0,0.00015,2]
[408637540,1774031442053,-250.0,0.00015,2]
[408637541,1774031442063,-5009.85444078,0.00015,2]
[408637542,1774031442072,-2402.0,0.0001504,2]
[408637543,1774031442082,-435.26224212,0.00015041,2]
[408637544,1774031442093,-415.69,0.00015049,2]
[408637545,1774031442105,-436.88,0.0001505,2]
[408637546,1774031442116,-300.0,0.00015066,2]
[408637547,1774031442127,-225.0,0.00015068,2]
[408637548,1774031442138,-500.0,0.00015123,2]
[408637549,1774031442148,-150.24489127,0.00015131,2]
[408637550,1774031442158,-213752.0623262,0.00015141,2]
[408637551,1774031442171,-1237.5271782,0.00015141,2]
[408637552,1774031442181,-171.8061275,0.00015141,2]
[408637553,1774031442195,-124826.2243445,0.00015141,2]
[408637554,1774031442205,-289.978041,0.00015141,2]
[408637555,1774031442215,-4544.4370377,0.00015141,2]
[408637556,1774031442226,-300.0,0.00015146,2]
[408637557,1774031442236,-500.0,0.00015173,2]
[408637558,1774031442246,-213.719655,0.00015175,7]
[408637559,1774031442256,-165.43533,0.00015175,7]
[408637560,1774031442266,-334.530066,0.00015175,7]
[408637561,1774031442276,-165.130716,0.00015175,7]
[408637562,1774031442286,-207.663026,0.00015175,7]
[408637563,1774031442296,-415.72,0.00015195,2]
[408637564,1774031442307,-427.95,0.00015196,2]
[408637565,1774031442317,-436.91859816,0.00015196,2]
[408637566,1774031442329,-341.5311,0.000152,2]
[408637567,1774031442340,-465.56566371,0.0001521,2]
[408637568,1774031442351,-553.59547462,0.0001521,2]
[408637569,1774031442362,-300.0,0.00015267,2]
[408637570,1774031442373,-300.0,0.00015285,2]
[408637571,1774031442395,-2000.0,0.00015397,2]
[408637572,1774031442408,-300.0,0.000154,2]
[408637573,1774031442420,-237.0684999,0.000154,2]
[408637574,1774031442433,-350.0,0.00015402,2]
[408637575,1774031442444,-1613.0,0.00015446,2]
[408637576,1774031442457,-6453.0,0.00015446,2]
[408637577,1774031442469,-1406.8702718,0.00015477,2]
[408637578,1774031442481,-435.2622421,0.00015481,2]
[408637579,1774031442494,-2000.0,0.000155,2]
[408637580,1774031442511,-4000.0,0.00015507,2]
[408637581,1774031442523,-503.0,0.00015523,3]
[408637582,1774031442534,-1567.0,0.00015532,2]
[408637583,1774031442550,-1052.14539065,0.00015554,2]
[408637584,1774031442561,-193.47,0.00015599,2]
[408637585,1774031442572,-900.0,0.000156,5]
[408637586,1774031442583,-268.56124603,0.00015644,2]
[408637587,1774031442597,-2204.50856174,0.0001568,2]
[408637588,1774031442609,-179.07,0.00015686,2]
[408637589,1774031442620,-168.0,0.00015687,2]
[408637590,1774031442631,-268.56124603,0.00015699,2]
[408637591,1774031442642,-52930.07,0.000157,2]
[408637592,1774031442652,-1200.0,0.000157,5]
[408637593,1774031442663,-440.95,0.00015719,2]
[408637594,1774031442674,-442.93511681,0.00015719,2]
[408637595,1774031442685,-1000.0,0.00015721,2]
[408637596,1774031442696,-500.0,0.00015726,2]
[408637597,1774031442706,-800.0,0.00015726,2]
[408637598,1774031442717,-168.0,0.00015728,2]
[408637599,1774031442728,-506.0,0.00015737,2]
[408637600,1774031442739,-268.56124603,0.00015781,2]
[408637601,1774031442757,-506.0,0.00015795,2]
[408637602,1774031442768,-1600.0,0.000158,5]
[408637603,1774031442778,-171.25,0.00015833,2]
[408637604,1774031442791,-268.56124603,0.00015836,2]
[408637605,1774031442803,-569.02,0.00015862,2]
[408637606,1774031442814,-21150.0,0.0001589,2]
[408637607,1774031442824,-151.0,0.0001589,2]
[408637608,1774031442836,-2000.0,0.0001589,2]
[408637609,1774031442853,-268.56124603,0.0001589,2]
[408637610,1774031442863,-164.573006,0.0001589,2]
[408637611,1774031442874,-271.739248,0.0001589,2]
[408637612,1774031442884,-153.564017,0.0001589,2]
[408637613,1774031442904,-151.0,0.0001589,2]
[408637615,1774031442924,-151.0,0.0001589,2]
[408637616,1774031442934,-151.0,0.0001589,2]
[408637617,1774031442944,-151.0,0.0001589,2]
[408637618,1774031442954,-151.0,0.0001589,2]
[408637619,1774031442964,-151.0,0.0001589,2]
[408637620,1774031442974,-151.0,0.0001589,2]
[408637621,1774031442984,-151.0,0.0001589,2]
[408637622,1774031442994,-151.0,0.0001589,2]
[408637623,1774031443007,-151.0,0.0001589,2]
[408637624,1774031443020,-4000.0,0.00015895,2]
[408637625,1774031443031,-25000.0,0.00015899,3]
[408637626,1774031443041,-25000.0,0.00015899,3]
[408637627,1774031443051,-436.88,0.000159,2]
[408637628,1774031443061,-415.69,0.000159,2]
[408637629,1774031443071,-465.56566371,0.000159,2]
[408637630,1774031443081,-553.59547462,0.000159,2]
[408637631,1774031443091,-307.47975526,0.000159,5]
[408637632,1774031443103,-300.0,0.000159,5]
[408637633,1774031443113,-490.9413273,0.000159,2]
[408637634,1774031443124,-27089.01543356,0.000159,2]
[408637635,1774031443134,-954.24369861,0.000159,2]
[408637636,1774031443144,-25714.79192414,0.000159,2]
[408637637,1774031443153,-2478.46847908,0.000159,2]
[408637639,1774031443164,-435.2622421,0.0001592,2]
[408637641,1774031443174,-506.0,0.00015955,2]
[408637643,1774031443185,-200.0,0.00015965,2]
[408637644,1774031443195,-200.0,0.00015965,2]
[408637645,1774031443204,-200.0,0.00015965,2]
[408637646,1774031443214,-200.0,0.00015965,2]
[408637647,1774031443224,-200.0,0.00015965,2]
[408637648,1774031443234,-200.0,0.00015965,2]
[408637649,1774031443244,-200.0,0.00015965,2]
[408637650,1774031443255,-200.0,0.00015965,2]
[408637651,1774031443265,-200.0,0.00015965,2]
[408637652,1774031443275,-200.0,0.00015965,2]
[408637653,1774031443284,-200.0,0.00015965,2]
[408637654,1774031443294,-200.0,0.00015965,2]
[408637655,1774031443304,-200.0,0.00015965,2]
[408637656,1774031443314,-200.0,0.00015965,2]
[408637657,1774031443324,-200.0,0.00015965,2]
[408637658,1774031443333,-200.0,0.00015965,2]
[408637659,1774031443343,-200.0,0.00015965,2]
[408637660,1774031443353,-200.0,0.00015965,2]
[408637661,1774031443363,-200.0,0.00015965,2]
[408637662,1774031443372,-200.0,0.00015965,2]
[408637663,1774031443382,-200.0,0.00015965,2]
[408637664,1774031443392,-200.0,0.00015965,2]
[408637665,1774031443402,-800.0,0.00015965,2]
[408637666,1774031443412,-800.0,0.00015965,2]
[408637667,1774031443432,-800.0,0.00015965,2]
[408637669,1774031443453,-800.0,0.00015965,2]
[408637670,1774031443473,-800.0,0.00015965,2]
[408637672,1774031443484,-800.0,0.00015965,2]
[408637673,1774031443494,-800.0,0.00015965,2]
[408637674,1774031443504,-800.0,0.00015965,2]
[408637675,1774031443514,-800.0,0.00015965,2]
[408637676,1774031443524,-800.0,0.00015965,2]
[408637677,1774031443534,-800.0,0.00015965,2]
[408637678,1774031443544,-800.0,0.00015965,2]
[408637679,1774031443554,-800.0,0.00015965,2]
[408637680,1774031443563,-200.0,0.00015965,2]
[408637682,1774031443572,-200.0,0.00015965,2]
[408637683,1774031443582,-200.0,0.00015965,2]
[408637684,1774031443592,-200.0,0.00015965,2]
[408637685,1774031443601,-200.0,0.00015965,2]
[408637686,1774031443611,-200.0,0.00015965,2]
[408637687,1774031443621,-200.0,0.00015965,2]
[408637688,1774031443631,-200.0,0.00015965,2]
[408637689,1774031443641,-200.0,0.00015965,2]
[408637690,1774031443652,-200.0,0.00015965,2]
[408637691,1774031443663,-200.0,0.00015965,2]
[408637692,1774031443675,-200.0,0.00015965,2]
[408637693,1774031443686,-200.0,0.00015965,2]
[408637694,1774031443696,-200.0,0.00015965,2]
[408637695,1774031443705,-268.0,0.00015965,2]
[408637696,1774031443715,-800.0,0.00015965,2]
[408637697,1774031443727,-800.0,0.00015965,2]
[408637698,1774031443737,-800.0,0.00015965,2]
[408637699,1774031443748,-800.0,0.00015965,2]
[408637701,1774031443758,-800.0,0.00015965,2]
[408637702,1774031443767,-800.0,0.00015965,2]
[408637703,1774031443777,-800.0,0.00015965,2]
[408637705,1774031443787,-800.0,0.00015965,2]
[408637706,1774031443797,-800.0,0.00015965,2]
[408637707,1774031443807,-800.0,0.00015965,2]
[408637708,1774031443818,-800.0,0.00015965,2]
[408637709,1774031443827,-800.0,0.00015965,2]
[408637710,1774031443838,-800.0,0.00015965,2]
[408637711,1774031443848,-800.0,0.00015965,2]
[408637712,1774031443857,-800.0,0.00015965,2]
[408637713,1774031443868,-800.0,0.00015965,2]
[408637714,1774031443879,-800.0,0.00015965,2]
[408637715,1774031443888,-800.0,0.00015965,2]
[408637716,1774031443899,-800.0,0.00015965,2]
[408637717,1774031443908,-800.0,0.00015965,2]
[408637718,1774031443918,-800.0,0.00015965,2]
[408637719,1774031443927,-800.0,0.00015965,2]
[408637720,1774031443936,-800.0,0.00015965,2]
[408637721,1774031443945,-800.0,0.00015965,2]
[408637722,1774031443955,-800.0,0.00015965,2]
[408637723,1774031443964,-800.0,0.00015965,2]
[408637724,1774031443974,-800.0,0.00015965,2]
[408637725,1774031443984,-800.0,0.00015965,2]
[408637726,1774031443995,-800.0,0.00015965,2]
[408637727,1774031444004,-800.0,0.00015965,2]
[408637728,1774031444014,-800.0,0.00015965,2]
[408637729,1774031444023,-800.0,0.00015965,2]
[408637730,1774031444032,-800.0,0.00015965,2]
[408637731,1774031444053,-800.0,0.00015965,2]